fUSD/lending_fUSD_20260620
["ID","MTS","AMOUNT","RATE_DAILY","PERIOD"]
[425802443,1781910639000,-500.0,0.00024411,2]
[425802442,1781910639000,-2319.72410669,0.00024407,2]
[425802391,1781910639000,-500.0,0.00022763,2]
[425802423,1781910639000,-135031.57031299,0.00024,2]
[425802418,1781910639000,-151.0,0.00023859,2]
[425802424,1781910639000,-1260.51992549,0.00024,2]
[425802416,1781910639000,-215.46746798,0.00023627,30]
[425802393,1781910639000,-151.0,0.00022763,2]
[425802395,1781910639000,-1783.19,0.00022986,2]
[425802394,1781910639000,-151.0,0.00022763,2]
[425802397,1781910639000,-492.0,0.00023,2]
[425802398,1781910639000,-615.0,0.00023,2]
[425802396,1781910639000,-1000.0,0.00023,14]
[425802399,1781910639000,-155.0,0.00023,2]
[425802417,1781910639000,-200.0,0.00023768,2]
[425802400,1781910639000,-247.0,0.00023,2]
[425802402,1781910639000,-253.0,0.00023,2]
[425802405,1781910639000,-215.46746798,0.00023139,30]
[425802406,1781910639000,-367.38650648,0.00023163,2]
[425802401,1781910639000,-234.0,0.00023,2]
[425802404,1781910639000,-163.2,0.00023139,2]
[425802403,1781910639000,-200.0,0.00023011,2]
[425802414,1781910639000,-150.84406616,0.00023627,2]
[425802408,1781910639000,-215.46746799,0.00023288,30]
[425802409,1781910639000,-250.0,0.00023288,2]
[425802411,1781910639000,-200.0,0.00023311,2]
[425802415,1781910639000,-179.38288373,0.00023627,2]
[425802410,1781910639000,-151.0,0.00023311,2]
[425802412,1781910639000,-2157.14243826,0.00023311,2]
[425802407,1781910639000,-427.19060241,0.000232,2]
[425802413,1781910639000,-274.226415,0.0002352,14]
[425802479,1781910640000,-366.15,0.00025,2]
[425802471,1781910640000,-262.63522273,0.00025,2]
[425802473,1781910640000,-236.86067764,0.00025,2]
[425802472,1781910640000,-151.0,0.00025,2]
[425802476,1781910640000,-384.502733,0.00025,2]
[425802480,1781910640000,-366.15,0.00025,2]
[425802481,1781910640000,-366.15,0.00025,2]
[425802478,1781910640000,-366.15,0.00025,2]
[425802482,1781910640000,-384.502733,0.00025,2]
[425802475,1781910640000,-384.502733,0.00025,2]
[425802477,1781910640000,-384.502733,0.00025,2]
[425802484,1781910640000,-405.0,0.00025086,2]
[425802496,1781910640000,-560.2527,0.000257,2]
[425802486,1781910640000,-157.02,0.00025156,7]
[425802485,1781910640000,-157.63,0.00025156,7]
[425802488,1781910640000,-366.15,0.00025493,2]
[425802492,1781910640000,-467.22448482,0.00025602,2]
[425802490,1781910640000,-2494.55939288,0.00025503,2]
[425802487,1781910640000,-200.0,0.00025282,2]
[425802489,1781910640000,-200.0,0.00025503,2]
[425802491,1781910640000,-500.0,0.00025602,2]
[425802494,1781910640000,-157.63,0.00025654,30]
[425802493,1781910640000,-367.38650648,0.00025645,2]
[425802474,1781910640000,-269.81610853,0.00025,2]
[425802483,1781910640000,-151.0,0.00025,2]
[425802470,1781910640000,-151.0,0.00025,2]
[425802446,1781910640000,-13383.42611288,0.00024589,7]
[425802466,1781910640000,-151.0,0.00025,2]
[425802444,1781910640000,-200.0,0.00024525,2]
[425802447,1781910640000,-18108.2484,0.00024589,7]
[425802445,1781910640000,-8946.49810681,0.00024589,7]
[425802449,1781910640000,-155.6,0.00024658,2]
[425802451,1781910640000,-157.63,0.00024658,2]
[425802448,1781910640000,-250.0,0.00024658,4]
[425802450,1781910640000,-1000.0,0.00024658,2]
[425802452,1781910640000,-157.02,0.00024658,2]
[425802454,1781910640000,-179.0,0.00024889,10]
[425802453,1781910640000,-1200.0,0.000248,9]
[425802455,1781910640000,-2500.0,0.000249,9]
[425802456,1781910640000,-218.67099295,0.000249,2]
[425802458,1781910640000,-151.0,0.00024955,2]
[425802457,1781910640000,-633.49537878,0.000249,2]
[425802459,1781910640000,-200.0,0.00024955,2]
[425802460,1781910640000,-2405.55389863,0.00024955,2]
[425802461,1781910640000,-498.79892273,0.0002499,2]
[425802462,1781910640000,-29465.57916623,0.00025,60]
[425802463,1781910640000,-906.1511741,0.00025,2]
[425802468,1781910640000,-631.69640676,0.00025,2]
[425802465,1781910640000,-903289.28758525,0.00025,2]
[425802467,1781910640000,-494.54216288,0.00025,2]
[425802469,1781910640000,-160.271321,0.00025,2]
[425802464,1781910640000,-1005.96241815,0.00025,2]
[425802495,1781910640000,-157.02,0.00025654,30]
[425802497,1781910640000,-3308.61,0.00025786,2]
[425802501,1781910640000,-250.0,0.00026027,6]
[425802528,1781910640000,-162.96995966,0.000273,2]
[425802530,1781910640000,-415.87863844,0.000273,2]
[425802533,1781910640000,-1500.0,0.00027397,2]
[425802535,1781910640000,-399.0,0.00027397,2]
[425802531,1781910640000,-996.84406783,0.00027375,2]
[425802534,1781910640000,-519.01954751,0.00027397,2]
[425802529,1781910640000,-1285.28051455,0.000273,2]
[425802536,1781910640000,-1000.0,0.00027397,20]
[425802532,1781910640000,-150.0,0.00027396,20]
[425802540,1781910640000,-11205.66,0.00027397,10]
[425802537,1781910640000,-300.0,0.00027397,2]
[425802525,1781910640000,-743.23945467,0.000272,2]
[425802538,1781910640000,-151.0,0.00027397,2]
[425802541,1781910640000,-250.0,0.00027397,8]
[425802546,1781910640000,-1954.22160127,0.000275,2]
[425802542,1781910640000,-162.96995966,0.000275,2]
[425802544,1781910640000,-415.87863844,0.000275,2]
[425802547,1781910640000,-500.0,0.000275,7]
[425802543,1781910640000,-1285.28051455,0.000275,2]
[425802545,1781910640000,-743.23945467,0.000275,2]
[425802550,1781910640000,-150.0,0.00027553,5]
[425802549,1781910640000,-200.0,0.00027553,2]
[425802548,1781910640000,-338.0,0.000275,7]
[425802552,1781910640000,-630.0,0.00027639,2]
[425802539,1781910640000,-13446.79,0.00027397,10]
[425802527,1781910640000,-36680.0,0.00027294,2]
[425802551,1781910640000,-160.13,0.000276,7]
[425802520,1781910640000,-743.23945467,0.00027,2]
[425802526,1781910640000,-1954.22160127,0.000272,2]
[425802553,1781910640000,-200.0,0.00027695,2]
[425802502,1781910640000,-200.0,0.00026039,2]
[425802500,1781910640000,-42852.3,0.00025786,2]
[425802498,1781910640000,-980.44,0.00025786,2]
[425802499,1781910640000,-2863.82,0.00025786,2]
[425802506,1781910640000,-157.63,0.00026152,2]
[425802505,1781910640000,-158.03,0.00026152,2]
[425802504,1781910640000,-253.02710373,0.00026051,2]
[425802508,1781910640000,-155.4,0.00026296,2]
[425802507,1781910640000,-157.02,0.00026152,2]
[425802511,1781910640000,-150.0,0.00026493,5]
[425802503,1781910640000,-200.0,0.00026051,2]
[425802509,1781910640000,-433.963723,0.00026489,2]
[425802512,1781910640000,-4100.0,0.00026556,5]
[425802523,1781910640000,-1143.0,0.00027123,2]
[425802522,1781910640000,-1954.22160127,0.00027,2]
[425802524,1781910640000,-200.0,0.00027147,2]
[425802518,1781910640000,-1285.28051455,0.00027,2]
[425802517,1781910640000,-162.96995966,0.00027,2]
[425802515,1781910640000,-2000.0,0.00026639,2]
[425802516,1781910640000,-200.0,0.00026796,2]
[425802514,1781910640000,-200.0,0.00026599,2]
[425802513,1781910640000,-326.06,0.00026573,2]
[425802510,1781910640000,-321.769053,0.00026493,2]
[425802519,1781910640000,-415.87863844,0.00027,2]
[425802589,1781910641000,-161.77,0.00028618,30]
[425802593,1781910641000,-157.02,0.00028692,7]
[425802590,1781910641000,-151.0,0.0002868,7]
[425802588,1781910641000,-151.0,0.00028613,7]
[425802583,1781910641000,-151.0,0.00028613,7]
[425802584,1781910641000,-384.502733,0.00028613,7]
[425802585,1781910641000,-384.502733,0.00028613,7]
[425802582,1781910641000,-151.0,0.00028613,7]
[425802581,1781910641000,-157.02,0.00028602,2]
[425802591,1781910641000,-2435.53989,0.0002868,2]
[425802595,1781910641000,-250.0,0.00028767,10]
[425802592,1781910641000,-157.63,0.00028691,7]
[425802594,1781910641000,-519.01954751,0.00028766,2]
[425802597,1781910641000,-157.02,0.00028782,30]
[425802598,1781910641000,-200.0,0.00028791,2]
[425802586,1781910641000,-384.502733,0.00028613,7]
[425802599,1781910641000,-152.0,0.00028836,7]
[425802602,1781910641000,-157.63,0.00028871,2]
[425802601,1781910641000,-1783.19,0.00028849,2]
[425802600,1781910641000,-163.39,0.00028841,7]
[425802603,1781910641000,-157.02,0.00028872,2]
[425802604,1781910641000,-150.0,0.00028878,5]
[425802606,1781910641000,-1285.28051455,0.000289,2]
[425802596,1781910641000,-157.63,0.00028781,30]
[425802587,1781910641000,-384.502733,0.00028613,7]
[425802570,1781910641000,-200.0,0.0002831,2]
[425802578,1781910641000,-1285.28051455,0.000286,2]
[425802605,1781910641000,-152.0,0.00028892,7]
[425802556,1781910641000,-1285.28051455,0.000278,2]
[425802555,1781910641000,-162.96995966,0.000278,2]
[425802554,1781910641000,-351.71799448,0.00027794,2]
[425802557,1781910641000,-415.87863844,0.000278,2]
[425802558,1781910641000,-743.23945467,0.000278,2]
[425802561,1781910641000,-27274.6581315,0.00027966,2]
[425802559,1781910641000,-1954.22160127,0.000278,2]
[425802560,1781910641000,-182.49,0.00027838,7]
[425802562,1781910641000,-20952.3591267,0.00028097,2]
[425802563,1781910641000,-1285.28051455,0.000281,2]
[425802580,1781910641000,-157.63,0.00028601,2]
[425802564,1781910641000,-415.87863844,0.000281,2]
[425802567,1781910641000,-367.38650648,0.00028126,2]
[425802566,1781910641000,-1954.22160127,0.000281,2]
[425802569,1781910641000,-155.4,0.00028267,2]
[425802572,1781910641000,-199.96658507,0.0002842,2]
[425802573,1781910641000,-500.0,0.00028443,16]
[425802571,1781910641000,-1285.28051455,0.000284,2]
[425802575,1781910641000,-1000.0,0.00028565,2]
[425802576,1781910641000,-162.32,0.00028582,30]
[425802574,1781910641000,-500.0,0.00028443,16]
[425802577,1781910641000,-163.39,0.00028583,30]
[425802579,1781910641000,-338.0,0.000286,7]
[425802565,1781910641000,-743.23945467,0.000281,2]
[425802568,1781910641000,-200.0,0.00028243,2]
[425802608,1781910641000,-286.0,0.00028904,2]
[425802611,1781910641000,-160.0,0.00028923,30]
[425802640,1781910641000,-500.0,0.00029297,18]
[425802638,1781910641000,-157.66,0.00029232,7]
[425802641,1781910641000,-200.0,0.00029339,2]
[425802639,1781910641000,-157.06,0.00029232,7]
[425802643,1781910641000,-163.39,0.00029359,30]
[425802648,1781910641000,-150.0,0.00029534,2]
[425802646,1781910641000,-633.49537877,0.00029426,2]
[425802650,1781910641000,-163.39,0.00029618,7]
[425802644,1781910641000,-152.0,0.00029393,3]
[425802642,1781910641000,-162.32,0.00029359,7]
[425802645,1781910641000,-2772.78958734,0.000294,2]
[425802649,1781910641000,-568.37,0.00029588,2]
[425802652,1781910641000,-568.26,0.00029793,7]
[425802651,1781910641000,-161.77,0.0002963,2]
[425802653,1781910641000,-536.23,0.00029793,7]
[425802655,1781910641000,-284.4061351,0.00029887,2]
[425802654,1781910641000,-163.39,0.00029877,2]
[425802657,1781910641000,-500.0,0.00029901,19]
[425802656,1781910641000,-3700.0,0.000299,10]
[425802658,1781910641000,-155.0,0.00029921,30]
[425802660,1781910641000,-160.0,0.00029923,30]
[425802659,1781910641000,-156.0,0.00029923,30]
[425802610,1781910641000,-156.0,0.00028923,30]
[425802637,1781910641000,-1285.28051455,0.000292,2]
[425802633,1781910641000,-996.84406783,0.00029113,2]
[425802647,1781910641000,-1285.28051455,0.000295,2]
[425802634,1781910641000,-161.77,0.00029124,7]
[425802609,1781910641000,-155.0,0.00028921,30]
[425802635,1781910641000,-157.63,0.00029142,2]
[425802607,1781910641000,-202.0,0.000289,2]
[425802612,1781910641000,-163.0,0.00028923,30]
[425802615,1781910641000,-151.0,0.00028923,30]
[425802614,1781910641000,-615.0,0.00028923,30]
[425802613,1781910641000,-492.0,0.00028923,30]
[425802618,1781910641000,-234.0,0.00028923,30]
[425802620,1781910641000,-253.0,0.00028924,30]
[425802622,1781910641000,-585.84,0.00028925,7]
[425802624,1781910641000,-552.82,0.00028925,7]
[425802623,1781910641000,-721.31,0.00028925,7]
[425802616,1781910641000,-156.0,0.00028923,30]
[425802630,1781910641000,-157.63,0.00029052,30]
[425802632,1781910641000,-163.39,0.000291,2]
[425802621,1781910641000,-156.0,0.00028924,30]
[425802636,1781910641000,-157.02,0.00029142,2]
[425802631,1781910641000,-157.02,0.00029052,30]
[425802626,1781910641000,-157.63,0.00028962,7]
[425802629,1781910641000,-500.0,0.0002903,17]
[425802628,1781910641000,-1158.0,0.00029,2]
[425802625,1781910641000,-588.82,0.00028925,30]
[425802617,1781910641000,-151.0,0.00028923,30]
[425802619,1781910641000,-247.0,0.00028924,30]
[425802627,1781910641000,-157.02,0.00028962,7]
[425802696,1781910642000,-1481.2378076,0.00030145,2]
[425802697,1781910642000,-578.20924308,0.00030145,2]
[425802698,1781910642000,-1536.04360648,0.00030145,2]
[425802699,1781910642000,-1592.87721992,0.00030145,2]
[425802694,1781910642000,-151.0,0.00030145,2]
[425802691,1781910642000,-1280.88388877,0.00030145,2]
[425802695,1781910642000,-1428.38747117,0.00030145,2]
[425802692,1781910642000,-1328.27659266,0.00030145,2]
[425802690,1781910642000,-1235.18214925,0.00030145,2]
[425802700,1781910642000,-1651.81367706,0.00030145,2]
[425802693,1781910642000,-1377.42282658,0.00030145,2]
[425802704,1781910642000,-1776.30922209,0.00030145,2]
[425802719,1781910642000,-151.0,0.00030145,2]
[425802707,1781910642000,-151.0,0.00030145,2]
[425802703,1781910642000,-209.40437684,0.00030145,2]
[425802708,1781910642000,-152.0,0.00030145,2]
[425802702,1781910642000,-1712.93078311,0.00030145,2]
[425802701,1781910642000,-152.0,0.00030145,2]
[425802706,1781910642000,-1842.0326633,0.00030145,2]
[425802711,1781910642000,-1980.8648231,0.00030145,2]
[425802716,1781910642000,-500.0,0.00030145,2]
[425802709,1781910642000,-1910.18787185,0.00030145,2]
[425802712,1781910642000,-152.0,0.00030145,2]
[425802689,1781910642000,-1191.11104074,0.00030145,2]
[425802705,1781910642000,-152.0,0.00030145,2]
[425802688,1781910642000,-1148.61238259,0.00030145,2]
[425802662,1781910642000,-492.0,0.00029923,30]
[425802684,1781910642000,-1030.0,0.00030145,2]
[425802663,1781910642000,-615.0,0.00029923,30]
[425802661,1781910642000,-163.0,0.00029923,30]
[425802664,1781910642000,-151.0,0.00029923,30]
[425802665,1781910642000,-156.0,0.00029923,30]
[425802667,1781910642000,-234.0,0.00029923,30]
[425802668,1781910642000,-247.0,0.00029924,30]
[425802666,1781910642000,-151.0,0.00029923,30]
[425802670,1781910642000,-156.0,0.00029924,30]
[425802673,1781910642000,-433.963723,0.00030045,2]
[425802675,1781910642000,-519.01954751,0.00030135,2]
[425802672,1781910642000,-320.1444,0.00030031,2]
[425802687,1781910642000,-1107.63007,0.00030145,2]
[425802669,1781910642000,-253.0,0.00029924,30]
[425802671,1781910642000,-1000.0,0.00030017,7]
[425802678,1781910642000,-163.39,0.00030136,30]
[425802679,1781910642000,-302.07247059,0.00030137,2]
[425802676,1781910642000,-162.32,0.00030136,2]
[425802677,1781910642000,-161.77,0.00030136,30]
[425802681,1781910642000,-188.63223808,0.00030137,30]
[425802682,1781910642000,-300.0,0.00030144,10]
[425802683,1781910642000,-402.47050455,0.00030145,2]
[425802685,1781910642000,-1068.11,0.00030145,2]
[425802680,1781910642000,-247.17,0.00030137,12]
[425802686,1781910642000,-174.61919141,0.00030145,2]
[425802674,1781910642000,-366.15,0.00030135,2]
[425802718,1781910642000,-500.0,0.00030145,2]
[425802710,1781910642000,-500.0,0.00030145,2]
[425802720,1781910642000,-152.0,0.00030145,2]
[425802753,1781910642000,-1215.0,0.00030328,2]
[425802751,1781910642000,-1229.0,0.00030328,2]
[425802755,1781910642000,-682.0,0.00030344,5]
[425802756,1781910642000,-402.47050455,0.00030365,2]
[425802749,1781910642000,-402.47050455,0.0003031,2]
[425802752,1781910642000,-949.22,0.00030328,2]
[425802754,1781910642000,-3656.615,0.00030328,2]
[425802758,1781910642000,-151.0,0.00030419,2]
[425802757,1781910642000,-151.0,0.00030365,2]
[425802759,1781910642000,-402.47050455,0.0003042,2]
[425802761,1781910642000,-402.47050455,0.00030475,2]
[425802760,1781910642000,-151.0,0.0003042,2]
[425802765,1781910642000,-402.47050455,0.0003053,2]
[425802767,1781910642000,-402.47050455,0.00030585,2]
[425802762,1781910642000,-151.0,0.00030475,2]
[425802769,1781910642000,-367.38650648,0.00030607,2]
[425802764,1781910642000,-2772.78958734,0.000305,2]
[425802768,1781910642000,-151.0,0.00030585,2]
[425802766,1781910642000,-151.0,0.0003053,2]
[425802763,1781910642000,-200.0,0.00030488,2]
[425802770,1781910642000,-560.2527,0.00030623,2]
[425802771,1781910642000,-402.47050455,0.0003064,2]
[425802773,1781910642000,-181.08010149,0.00030693,2]
[425802772,1781910642000,-151.0,0.0003064,2]
[425802713,1781910642000,-2054.15682156,0.00030145,2]
[425802750,1781910642000,-151.0,0.0003031,2]
[425802748,1781910642000,-664.82,0.000303,30]
[425802774,1781910642000,-151.0,0.00030693,2]
[425802747,1781910642000,-273.0,0.00030292,2]
[425802745,1781910642000,-402.47050455,0.00030255,2]
[425802715,1781910642000,-152.0,0.00030145,2]
[425802724,1781910642000,-500.0,0.00030145,2]
[425802723,1781910642000,-152.0,0.00030145,2]
[425802722,1781910642000,-500.0,0.00030145,2]
[425802725,1781910642000,-721.12765534,0.00030145,2]
[425802732,1781910642000,-500.0,0.00030145,2]
[425802731,1781910642000,-152.0,0.00030145,2]
[425802726,1781910642000,-152.0,0.00030145,2]
[425802728,1781910642000,-381.80942428,0.00030145,2]
[425802729,1781910642000,-500.0,0.00030145,2]
[425802733,1781910642000,-500.0,0.00030145,2]
[425802717,1781910642000,-152.0,0.00030145,2]
[425802736,1781910642000,-500.0,0.00030145,2]
[425802730,1781910642000,-152.0,0.00030145,2]
[425802746,1781910642000,-151.0,0.00030255,2]
[425802744,1781910642000,-201.64783205,0.00030255,2]
[425802740,1781910642000,-150.0,0.00030202,5]
[425802742,1781910642000,-6014.495,0.0003024,25]
[425802738,1781910642000,-402.47050455,0.000302,2]
[425802741,1781910642000,-155.4,0.00030239,2]
[425802739,1781910642000,-151.0,0.000302,2]
[425802734,1781910642000,-500.0,0.00030145,2]
[425802737,1781910642000,-500.0,0.00030176,19]
[425802735,1781910642000,-500.0,0.00030145,2]
[425802743,1781910642000,-168.691,0.0003024,25]
[425802814,1781910643000,-225.18697532,0.00031241,2]
[425802811,1781910643000,-1000.0,0.000312,7]
[425802815,1781910643000,-151.0,0.00031241,2]
[425802812,1781910643000,-187.78006524,0.00031241,2]
[425802804,1781910643000,-253.0,0.00030924,30]
[425802810,1781910643000,-150.0,0.00031011,2]
[425802807,1781910643000,-151.0,0.00030967,2]
[425802805,1781910643000,-156.0,0.00030924,30]
[425802803,1781910643000,-247.0,0.00030924,30]
[425802809,1781910643000,-200.0,0.00030977,2]
[425802813,1781910643000,-151.0,0.00031241,2]
[425802821,1781910643000,-151.0,0.00031515,2]
[425802816,1781910643000,-381.80942428,0.00031241,2]
[425802819,1781910643000,-1298.6658005,0.00031473,2]
[425802818,1781910643000,-200.0,0.00031466,2]
[425802820,1781910643000,-519.01954751,0.00031504,2]
[425802823,1781910643000,-2772.78958734,0.000316,2]
[425802822,1781910643000,-226.0,0.00031527,5]
[425802824,1781910643000,-316.0,0.000316,2]
[425802825,1781910643000,-310.0,0.000316,2]
[425802827,1781910643000,-194.72792766,0.00031789,2]
[425802826,1781910643000,-500.0,0.00031722,22]
[425802801,1781910643000,-151.0,0.00030923,30]
[425802828,1781910643000,-151.0,0.00031789,2]
[425802817,1781910643000,-152.0,0.00031432,7]
[425802800,1781910643000,-156.0,0.00030923,30]
[425802790,1781910643000,-1276.0,0.00030802,2]
[425802802,1781910643000,-234.0,0.00030923,30]
[425802829,1781910643000,-233.5188934,0.00031789,2]
[425802778,1781910643000,-402.47050473,0.00030695,2]
[425802775,1781910643000,-217.15233878,0.00030693,2]
[425802779,1781910643000,-151.0,0.00030695,2]
[425802777,1781910643000,-381.80942428,0.00030693,2]
[425802776,1781910643000,-151.0,0.00030693,2]
[425802780,1781910643000,-500.0,0.00030798,21]
[425802782,1781910643000,-208.13998286,0.000308,2]
[425802783,1781910643000,-150.0,0.00030802,2]
[425802781,1781910643000,-500.0,0.000308,7]
[425802784,1781910643000,-150.0,0.00030802,2]
[425802799,1781910643000,-151.0,0.00030923,30]
[425802786,1781910643000,-150.0,0.00030802,2]
[425802787,1781910643000,-3560.0,0.00030802,2]
[425802789,1781910643000,-1360.0,0.00030802,2]
[425802791,1781910643000,-207.30250943,0.0003085,2]
[425802788,1781910643000,-383.0,0.00030802,2]
[425802792,1781910643000,-996.84406783,0.00030851,2]
[425802793,1781910643000,-155.0,0.00030921,30]
[425802794,1781910643000,-156.0,0.00030923,30]
[425802795,1781910643000,-160.0,0.00030923,30]
[425802797,1781910643000,-492.0,0.00030923,30]
[425802796,1781910643000,-163.0,0.00030923,30]
[425802798,1781910643000,-615.0,0.00030923,30]
[425802785,1781910643000,-150.0,0.00030802,2]
[425802831,1781910643000,-381.80942428,0.00031789,2]
[425802836,1781910643000,-173.07286399,0.00031923,30]
[425802835,1781910643000,-160.0,0.00031923,30]
[425802860,1781910643000,-1979.78,0.00032232,2]
[425802864,1781910643000,-151.0,0.00032337,2]
[425802866,1781910643000,-315.77328749,0.00032337,2]
[425802867,1781910643000,-151.0,0.00032337,2]
[425802869,1781910643000,-171.30093727,0.000324,30]
[425802868,1781910643000,-381.80942428,0.00032337,2]
[425802872,1781910643000,-1783.11,0.000324,2]
[425802870,1781910643000,-1855.41,0.000324,2]
[425802871,1781910643000,-1000.0,0.000324,2]
[425802874,1781910643000,-156.89671053,0.00032407,2]
[425802873,1781910643000,-151.0,0.000324,7]
[425802862,1781910643000,-201.93286098,0.00032337,2]
[425802875,1781910643000,-170.72173935,0.00032412,2]
[425802878,1781910643000,-169.38071459,0.00032412,2]
[425802879,1781910643000,-170.91896187,0.00032412,2]
[425802877,1781910643000,-164.29420679,0.00032412,2]
[425802882,1781910643000,-168.7949956,0.00032413,2]
[425802883,1781910643000,-154.10270494,0.00032413,2]
[425802881,1781910643000,-191.83172009,0.00032412,2]
[425802880,1781910643000,-159.0235818,0.00032412,2]
[425802885,1781910643000,-200.0,0.00032444,2]
[425802830,1781910643000,-151.0,0.00031789,2]
[425802886,1781910643000,-384.502733,0.00032561,7]
[425802887,1781910643000,-384.502733,0.00032561,7]
[425802876,1781910643000,-159.73890198,0.00032412,2]
[425802861,1781910643000,-17587.68209719,0.00032265,2]
[425802884,1781910643000,-166.61177439,0.00032413,2]
[425802859,1781910643000,-155.4,0.0003221,5]
[425802858,1781910643000,-189.77,0.00032165,2]
[425802833,1781910643000,-155.0,0.00031921,30]
[425802834,1781910643000,-156.0,0.00031923,30]
[425802838,1781910643000,-615.0,0.00031923,30]
[425802837,1781910643000,-492.0,0.00031923,30]
[425802839,1781910643000,-151.0,0.00031923,30]
[425802840,1781910643000,-156.0,0.00031923,30]
[425802842,1781910643000,-234.0,0.00031923,30]
[425802845,1781910643000,-160.91280991,0.00031924,30]
[425802846,1781910643000,-1001.0,0.00031945,120]
[425802841,1781910643000,-151.0,0.00031923,30]
[425802843,1781910643000,-247.0,0.00031924,30]
[425802832,1781910643000,-350.0,0.00031895,2]
[425802847,1781910643000,-200.0,0.00031955,2]
[425802844,1781910643000,-253.0,0.00031924,30]
[425802857,1781910643000,-1500.0,0.00032165,10]
[425802856,1781910643000,-644.26,0.00032118,2]
[425802855,1781910643000,-482.37,0.00032111,2]
[425802854,1781910643000,-390.0,0.00032097,2]
[425802853,1781910643000,-350.0,0.00032091,2]
[425802852,1781910643000,-151.0,0.00032063,2]
[425802849,1781910643000,-5796.79864298,0.00032,3]
[425802850,1781910643000,-1435.0,0.00032047,5]
[425802848,1781910643000,-11350.0,0.00032,3]
[425802851,1781910643000,-2211.0,0.00032047,5]
[425802921,1781910644000,-162.61665144,0.00032923,30]
[425802920,1781910644000,-156.0,0.00032923,30]
[425802914,1781910644000,-185.60184986,0.000329,2]
[425802917,1781910644000,-395.3,0.00032915,2]
[425802919,1781910644000,-155.0,0.00032921,30]
[425802913,1781910644000,-5000.0,0.000329,12]
[425802922,1781910644000,-492.0,0.00032923,30]
[425802923,1781910644000,-615.0,0.00032923,30]
[425802924,1781910644000,-151.0,0.00032923,30]
[425802918,1781910644000,-1000.0,0.0003292,120]
[425802928,1781910644000,-247.0,0.00032924,30]
[425802927,1781910644000,-234.0,0.00032923,30]
[425802926,1781910644000,-151.0,0.00032923,30]
[425802925,1781910644000,-156.0,0.00032923,30]
[425802929,1781910644000,-253.0,0.00032924,30]
[425802932,1781910644000,-166.48403506,0.00032939,2]
[425802931,1781910644000,-200.0,0.00032933,10]
[425802941,1781910644000,-300.0,0.00032999,10]
[425802934,1781910644000,-500.0,0.00032998,7]
[425802935,1781910644000,-300.0,0.00032999,10]
[425802940,1781910644000,-1000.0,0.00032999,120]
[425802915,1781910644000,-194.64603169,0.000329,2]
[425802930,1781910644000,-9990.94327511,0.0003293,2]
[425802916,1781910644000,-474.6405742,0.000329,2]
[425802904,1781910644000,-151.0,0.00032721,2]
[425802912,1781910644000,-1994.48,0.000329,30]
[425802888,1781910644000,-384.502733,0.00032561,7]
[425802892,1781910644000,-996.84406783,0.00032589,2]
[425802891,1781910644000,-150.0,0.00032562,2]
[425802890,1781910644000,-151.0,0.00032561,7]
[425802889,1781910644000,-384.502733,0.00032561,7]
[425802893,1781910644000,-1112.51055122,0.00032602,4]
[425802894,1781910644000,-151.0,0.00032611,2]